fUST/lending_fUST_20250826
["ID","MTS","AMOUNT","RATE_DAILY","PERIOD"]
[381405512,1756187232891,-704.66,0.00042465,30]
[381405513,1756187232944,-480.0,0.00042465,30]
[381405514,1756187232999,-480.0,0.00042465,30]
[381405515,1756187233055,-480.0,0.00042465,30]
[381405516,1756187233112,-632.02,0.00042465,30]
[381405517,1756187233166,-1308.79,0.00042465,30]
[381405518,1756187233221,-668.55,0.00042465,30]
[381405519,1756187233275,-862.79,0.00042465,30]
[381405520,1756187233332,-480.0,0.00042465,30]
[381405521,1756187233386,-480.0,0.00042465,30]
[381405522,1756187233441,-480.0,0.00042465,30]
[381405523,1756187233494,-480.0,0.00042465,30]
[381405524,1756187233547,-480.0,0.00042465,30]
[381405525,1756187233604,-480.0,0.00042465,30]
[381405526,1756187233658,-1599.88,0.00042465,30]
[381405527,1756187233711,-480.0,0.00042465,30]
[381405528,1756187233763,-985.59,0.00042465,30]
[381405529,1756187233821,-1409.81,0.00042465,30]
[381405530,1756187233877,-11624.77,0.00042465,30]
[381405531,1756187233931,-480.0,0.00042465,30]
[381405532,1756187233984,-530.9,0.00042465,30]
[381405533,1756187234038,-480.0,0.00042465,30]
[381405534,1756187234091,-974.53,0.00042465,30]
[381405535,1756187234144,-480.0,0.00042465,30]
[381405536,1756187234198,-480.0,0.00042465,30]
[381405537,1756187234252,-480.0,0.00042465,30]
[381405538,1756187234320,-480.0,0.00042465,30]
[381405539,1756187234373,-1666.44,0.00042465,30]
[381405540,1756187234428,-2931.11,0.00042465,30]
[381405541,1756187234478,-480.0,0.00042465,30]
[381405542,1756187234529,-710.24,0.00042465,30]
[381405543,1756187234580,-893.9,0.00042465,30]
[381405544,1756187234638,-1433.67,0.00042465,30]
[381405545,1756187234689,-1101.95,0.00042465,30]
[381405546,1756187234739,-627.72,0.00042465,30]
[381405547,1756187234792,-637.26,0.00042465,30]
[381405548,1756187234847,-855.77,0.00042465,30]
[381405549,1756187234902,-480.0,0.00042465,30]
[381405550,1756187234956,-676.72,0.00042465,30]
[381405551,1756187235009,-480.0,0.00042465,30]
[381405552,1756187235064,-1085.31,0.00042465,30]
[381405553,1756187235119,-1600.98,0.00042465,30]
[381405554,1756187235176,-350.94625959,0.00042465,30]
[381405555,1756187235229,-480.0,0.00042465,30]
[381405556,1756187235281,-261.30155405,0.00042465,30]
[381405557,1756187235332,-572.62,0.00042465,30]
[381405558,1756187235382,-1467.95,0.00042465,30]
[381405559,1756187235433,-1000.0,0.00042465,30]
[381405560,1756187235484,-558.14,0.00042465,30]
[381405561,1756187235536,-480.0,0.00042465,30]
[381405562,1756187235587,-520.58,0.00042465,30]
[381405563,1756187235637,-1831.23,0.00042465,30]
[381405564,1756187235687,-2842.25,0.00042465,30]
[381405565,1756187235737,-480.0,0.00042465,30]
[381405566,1756187235788,-1923.11,0.00042465,30]
[381405567,1756187235984,-658.26,0.00042465,30]
[381405568,1756187236040,-1753.36,0.00042465,30]
[381405569,1756187236094,-480.0,0.00042465,30]
[381405570,1756187236147,-862.46,0.00042465,30]
[381405571,1756187236202,-480.0,0.00042465,30]
[381405572,1756187236262,-480.0,0.00042465,30]
[381405573,1756187236321,-480.0,0.00042465,30]
[381405574,1756187236380,-480.0,0.00042465,30]
[381405575,1756187236433,-485.53,0.00042465,30]
[381405576,1756187236486,-1611.97,0.00042465,30]
[381405577,1756187236538,-480.0,0.00042465,30]
[381405578,1756187236589,-480.0,0.00042465,30]
[381405579,1756187236640,-584.0,0.00042465,30]
[381405580,1756187236693,-985.29,0.00042465,30]
[381405581,1756187236745,-1751.84,0.00042465,30]
[381405582,1756187236799,-480.0,0.00042465,30]
[381405583,1756187236855,-480.0,0.00042465,30]
[381405584,1756187236910,-989.75,0.00042465,30]
[381405585,1756187236962,-2363.72,0.00042465,30]
[381405586,1756187237016,-480.0,0.00042465,30]
[381405587,1756187237071,-480.0,0.00042465,30]
[381405588,1756187237127,-537.11,0.00042465,30]
[381405589,1756187237182,-610.09,0.00042465,30]
[381405590,1756187237236,-1799.8,0.00042465,30]
[381405591,1756187237288,-480.0,0.00042465,30]
[381405592,1756187237343,-2008.45,0.00042465,30]
[381405593,1756187237399,-553.74,0.00042465,30]
[381405594,1756187237451,-480.0,0.00042465,30]
[381405595,1756187237505,-480.0,0.00042465,30]
[381405596,1756187237567,-480.0,0.00042465,30]
[381405597,1756187237620,-502.77,0.00042465,30]
[381405598,1756187237671,-480.0,0.00042465,30]
[381405599,1756187237722,-3517.09,0.00042465,30]
[381405600,1756187237774,-2570.02,0.00042465,30]
[381405601,1756187237827,-684.49,0.00042465,30]
[381405602,1756187237878,-1172.04,0.00042465,30]
[381405603,1756187237928,-480.0,0.00042465,30]
[381405604,1756187237978,-1601.43,0.00042465,30]
[381405605,1756187238029,-493.99,0.00042465,30]
[381405606,1756187238080,-2567.15,0.00042465,30]
[381405607,1756187238130,-480.0,0.00042465,30]
[381405608,1756187238182,-480.0,0.00042465,30]
[381405609,1756187238233,-557.14,0.00042465,30]
[381405610,1756187238288,-592.73,0.00042465,30]
[381405611,1756187238340,-27644.96,0.00042465,30]
[381405612,1756187238391,-600.12,0.00042465,30]
[381405613,1756187238443,-480.0,0.00042465,30]
[381405614,1756187238493,-500.28,0.00042465,30]
[381405615,1756187238543,-2439.56,0.00042465,30]
[381405616,1756187238593,-480.0,0.00042465,30]
[381405617,1756187238643,-9223.21,0.00042465,30]
[381405618,1756187238692,-480.0,0.00042465,30]
[381405619,1756187238739,-592.12,0.00042465,30]
[381405620,1756187238790,-816.8,0.00042465,30]
[381405621,1756187238838,-480.0,0.00042465,30]
[381405622,1756187238887,-480.0,0.00042465,30]
[381405623,1756187238934,-480.0,0.00042465,30]
[381405624,1756187238982,-656.49,0.00042465,30]
[381405625,1756187239039,-480.0,0.00042465,30]
[381405626,1756187239097,-480.0,0.00042465,30]
[381405627,1756187239148,-3022.88,0.00042465,30]
[381405628,1756187239198,-927.35,0.00042465,30]
[381405629,1756187239247,-757.58,0.00042465,30]
[381405630,1756187239295,-1540.49,0.00042465,30]
[381405631,1756187239341,-480.0,0.00042465,30]
[381405632,1756187239388,-688.88,0.00042465,30]
[381405633,1756187239438,-1728.85,0.00042465,30]
[381405634,1756187239486,-805.12,0.00042465,30]
[381405635,1756187239535,-1262.34,0.00042465,30]
[381405636,1756187239584,-1808.6,0.00042465,30]
[381405637,1756187239637,-480.0,0.00042465,30]
[381405638,1756187239691,-480.0,0.00042465,30]
[381405639,1756187239743,-1083.52,0.00042465,30]
[381405640,1756187239794,-480.0,0.00042465,30]
[381405641,1756187239844,-480.0,0.00042465,30]
[381405642,1756187239894,-1012.19,0.00042465,30]
[381405643,1756187239944,-480.0,0.00042465,30]
[381405644,1756187239994,-5209.1,0.00042465,30]
[381405645,1756187240049,-480.0,0.00042465,30]
[381405646,1756187240102,-589.43,0.00042465,30]
[381405647,1756187240157,-973.16,0.00042465,30]
[381405648,1756187240209,-1466.8,0.00042465,30]
[381405649,1756187240261,-8002.8,0.00042465,30]
[381405650,1756187240310,-480.0,0.00042465,30]
[381405651,1756187240509,-2217.85,0.00042465,30]
[381405652,1756187240571,-816.69,0.00042465,30]
[381405653,1756187240625,-656.35,0.00042465,30]
[381405654,1756187240678,-647.88,0.00042465,30]
[381405655,1756187240731,-969.53,0.00042465,30]
[381405656,1756187240783,-480.0,0.00042465,30]
[381405657,1756187240836,-480.0,0.00042465,30]
[381405658,1756187240890,-2412.8,0.00042465,30]
[381405659,1756187240943,-7098.96,0.00042465,30]
[381405660,1756187240996,-622.48,0.00042465,30]
[381405661,1756187241049,-894.0,0.00042465,30]
[381405662,1756187241101,-482.65,0.00042465,30]
[381405663,1756187241155,-480.0,0.00042465,30]
[381405664,1756187241208,-2045.5,0.00042465,30]
[381405665,1756187241269,-480.0,0.00042465,30]
[381405666,1756187241323,-480.0,0.00042465,30]
[381405667,1756187241377,-480.0,0.00042465,30]
[381405668,1756187241428,-480.0,0.00042465,30]
[381405669,1756187241480,-656.95,0.00042465,30]
[381405670,1756187241531,-480.0,0.00042465,30]
[381405671,1756187241581,-809.01,0.00042465,30]
[381405672,1756187241637,-540.05,0.00042465,30]
[381405673,1756187241693,-640.83,0.00042465,30]
[381405674,1756187241744,-480.0,0.00042465,30]
[381405675,1756187241796,-5597.08,0.00042465,30]
[381405676,1756187241849,-507.28,0.00042465,30]
[381405677,1756187241898,-480.0,0.00042465,30]
[381405678,1756187241948,-877.78,0.00042465,30]
[381405679,1756187241997,-543.6,0.00042465,30]
[381405680,1756187242047,-749.82,0.00042465,30]
[381405681,1756187242097,-480.0,0.00042465,30]
[381405682,1756187242150,-1450.64,0.00042465,30]
[381405683,1756187242202,-635.2,0.00042465,30]
[381405684,1756187242253,-480.0,0.00042465,30]
[381405685,1756187242304,-1213.3,0.00042465,30]
[381405686,1756187242355,-641.11,0.00042465,30]
[381405687,1756187242405,-868.35,0.00042465,30]
[381405688,1756187242454,-480.0,0.00042465,30]
[381405689,1756187242503,-972.63,0.00042465,30]
[381405690,1756187242555,-480.0,0.00042465,30]
[381405691,1756187242609,-562.65,0.00042465,30]
[381405692,1756187242661,-2294.96,0.00042465,30]
[381405693,1756187242712,-922.31,0.00042465,30]
[381405694,1756187242763,-480.0,0.00042465,30]
[381405695,1756187242816,-1086.31,0.00042465,30]
[381405696,1756187242870,-480.0,0.00042465,30]
[381405697,1756187242922,-956.89,0.00042465,30]
[381405698,1756187242974,-1175.6,0.00042465,30]
[381405699,1756187243032,-480.0,0.00042465,30]
[381405700,1756187243086,-480.0,0.00042465,30]
[381405701,1756187243139,-480.0,0.00042465,30]
[381405702,1756187243191,-480.0,0.00042465,30]
[381405703,1756187243242,-480.0,0.00042465,30]
[381405704,1756187243293,-2764.97,0.00042465,30]
[381405705,1756187243344,-480.0,0.00042465,30]
[381405706,1756187243396,-1160.6,0.00042465,30]
[381405707,1756187243448,-480.0,0.00042465,30]
[381405708,1756187243501,-1051.04,0.00042465,30]
[381405709,1756187243555,-545.79,0.00042465,30]
[381405710,1756187243615,-774.94,0.00042465,30]
[381405711,1756187243669,-480.0,0.00042465,30]
[381405712,1756187243720,-651.17,0.00042465,30]
[381405713,1756187243770,-1347.95,0.00042465,30]
[381405714,1756187243827,-855.34,0.00042465,30]
[381405715,1756187243883,-1504.8,0.00042465,30]
[381405716,1756187243933,-480.0,0.00042465,30]
[381405717,1756187243984,-870.73,0.00042465,30]
[381405718,1756187244039,-562.47,0.00042465,30]
[381405719,1756187244093,-480.0,0.00042465,30]
[381405720,1756187244147,-754.8,0.00042465,30]
[381405721,1756187244199,-1041.99,0.00042465,30]
[381405722,1756187244250,-2704.05,0.00042465,30]
[381405723,1756187244300,-534.08,0.00042465,30]
[381405724,1756187244348,-480.0,0.00042465,30]
[381405725,1756187244398,-480.0,0.00042465,30]
[381405726,1756187244448,-1034.82,0.00042465,30]
[381405727,1756187244498,-480.0,0.00042465,30]
[381405728,1756187244549,-15283.92,0.00042465,30]
[381405729,1756187244600,-1077.83,0.00042465,30]
[381405730,1756187244649,-480.0,0.00042465,30]
[381405731,1756187244698,-2788.11,0.00042465,30]
[381405732,1756187244888,-2279.41,0.00042465,30]
[381405733,1756187244936,-480.0,0.00042465,30]
[381405734,1756187244985,-480.0,0.00042465,30]
[381405735,1756187245033,-480.0,0.00042465,30]
[381405736,1756187245079,-1009.58,0.00042465,30]
[381405737,1756187245129,-480.0,0.00042465,30]
[381405738,1756187245180,-480.0,0.00042465,30]
[381405739,1756187245233,-480.0,0.00042465,30]
[381405740,1756187245283,-232.69690678,0.00042465,30]
[381405741,1756187245335,-1492.37,0.00042465,30]
[381405742,1756187245385,-480.0,0.00042465,30]
[381405743,1756187245434,-863.35,0.00042465,30]
[381405744,1756187245482,-480.0,0.00042465,30]
[381405745,1756187245533,-480.0,0.00042465,30]
[381405746,1756187245589,-1925.94,0.00042465,30]
[381405747,1756187245642,-3849.32,0.00042465,30]
[381405748,1756187245692,-9275.55,0.00042465,30]
[381405749,1756187245744,-480.0,0.00042465,30]
[381405750,1756187245798,-480.0,0.00042465,30]
[381405751,1756187245849,-1232.58,0.00042465,30]
[381405752,1756187245899,-504.29,0.00042465,30]
[381405753,1756187245948,-3009.67,0.00042465,30]
[381405754,1756187245998,-480.0,0.00042465,30]
[381405755,1756187246046,-680.11,0.00042465,30]
[381405756,1756187246094,-959.01,0.00042465,30]
[381405757,1756187246144,-1259.71,0.00042465,30]
[381405758,1756187246195,-1608.95,0.00042465,30]
[381405759,1756187246244,-480.0,0.00042465,30]
[381405760,1756187246295,-480.0,0.00042465,30]
[381405761,1756187246342,-1922.74,0.00042465,30]
[381405762,1756187246389,-657.15,0.00042465,30]
[381405763,1756187246437,-480.0,0.00042465,30]
[381405764,1756187246485,-480.0,0.00042465,30]
[381405765,1756187246534,-480.0,0.00042465,30]
[381405766,1756187246585,-574.73783608,0.00042465,30]
[381405767,1756187246634,-480.0,0.00042465,30]
[381405768,1756187246682,-490.96,0.00042465,30]
[381405769,1756187246730,-1461.69,0.00042465,30]
[381405770,1756187246777,-480.0,0.00042465,30]
[381405771,1756187246828,-1050.53,0.00042465,30]
[381405772,1756187246905,-480.0,0.00042465,30]
[381405773,1756187246982,-493.06,0.00042465,30]
[381405774,1756187247056,-501.14,0.00042465,30]
[381405775,1756187247137,-700.0,0.00042739,60]
[381405776,1756187247209,-566.6,0.00042739,30]
[381405777,1756187247280,-480.0,0.00042739,30]
[381405778,1756187247351,-621.17,0.00042739,30]
[381405779,1756187247417,-480.0,0.00042739,30]
[381405780,1756187247484,-480.0,0.00042739,30]
[381405781,1756187247549,-480.0,0.00042739,30]
[381405782,1756187247619,-480.0,0.00042739,30]
[381405783,1756187247687,-554.1,0.00042739,30]
[381405784,1756187247760,-745.65,0.00042739,30]
[381405785,1756187247846,-480.0,0.00042739,30]
[381405786,1756187247915,-480.0,0.00042739,30]
[381405787,1756187247982,-480.0,0.00042739,30]
[381405788,1756187248052,-480.0,0.00042739,30]
[381405789,1756187248119,-827.93,0.00042739,30]
[381405790,1756187248184,-345.85585475,0.00042739,30]
[381405791,1756187248256,-435.60249108,0.00042739,30]
[381405792,1756187248320,-1433.81,0.00042739,30]
[381405793,1756187248387,-480.0,0.00042739,30]
[381405794,1756187248454,-480.0,0.00042739,30]
[381405795,1756187248518,-296.60240206,0.00042739,30]
[381405796,1756187248581,-609.81,0.00042739,30]
[381405797,1756187248629,-1096.74,0.00042739,30]
[381405798,1756187248674,-1000.0,0.00042739,30]
[381405799,1756187248718,-480.0,0.00042739,30]
[381405800,1756187248763,-480.0,0.00042739,30]
[381405801,1756187248808,-420.0,0.00042739,30]
[381405802,1756187248857,-480.0,0.00042739,30]
[381405803,1756187248904,-480.0,0.00042739,30]
[381405804,1756187248952,-1867.32,0.00042739,30]
[381405805,1756187248999,-485.58,0.00042739,30]
[381405806,1756187249048,-712.91,0.00042739,30]
[381405807,1756187249094,-480.0,0.00042739,30]
[381405808,1756187249141,-446.07829133,0.00042739,30]
[381405809,1756187249190,-480.0,0.00042739,30]
[381405810,1756187249595,-968.3,0.00042739,30]
[381405811,1756187249683,-480.0,0.00042739,30]
[381405812,1756187249732,-480.0,0.00042739,30]
[381405813,1756187249781,-514.53,0.00042739,30]
[381405814,1756187249832,-480.0,0.00042739,30]
[381405815,1756187249883,-755.81,0.00042739,30]
[381405816,1756187249932,-1561.44,0.00042739,30]
[381405817,1756187249980,-483.42,0.00042739,30]
[381405818,1756187250029,-480.0,0.00042739,30]
[381405819,1756187250082,-984.9,0.00042739,30]
[381405820,1756187250134,-480.0,0.00042739,30]
[381405821,1756187250184,-438.11780381,0.00042739,30]
[381405822,1756187250235,-1037.06,0.00042739,30]
[381405823,1756187250285,-480.0,0.00042739,30]
[381405824,1756187250335,-812.98,0.00042739,30]
[381405825,1756187250384,-1131.78,0.00042739,30]
[381405826,1756187250435,-480.0,0.00042739,30]
[381405827,1756187250483,-946.95,0.00042739,30]
[381405828,1756187250530,-480.0,0.00042739,30]
[381405830,1756187250576,-1093.47,0.00042739,30]
[381405831,1756187250622,-1059.5,0.00042739,30]
[381405832,1756187250667,-778.35,0.00042739,30]
[381405833,1756187250712,-480.0,0.00042739,30]
[381405834,1756187250756,-480.0,0.00042739,30]
[381405835,1756187250806,-766.08,0.00042739,30]
[381405836,1756187250856,-613.26,0.00042739,30]
[381405837,1756187250907,-480.0,0.00042739,30]
[381405838,1756187250956,-546.58,0.00042739,30]
[381405839,1756187251007,-784.32,0.00042739,30]
[381405840,1756187251056,-480.0,0.00042739,30]
[381405841,1756187251108,-606.08,0.00042739,30]
[381405842,1756187251157,-578.70713376,0.00042739,30]
[381405843,1756187251207,-1119.8,0.00042739,30]
[381405844,1756187251257,-547.32,0.00042739,30]
[381405845,1756187251305,-699.17,0.00042739,30]
[381405846,1756187251352,-864.9,0.00042739,30]
[381405847,1756187251398,-2132.91,0.00042739,30]
[381405848,1756187251444,-583.23,0.00042739,30]
[381405849,1756187251492,-344.68647232,0.00042739,30]
[381405850,1756187251541,-480.0,0.00042739,30]
[381405851,1756187251590,-480.0,0.00042739,30]
[381405852,1756187251640,-548.22,0.00042739,30]
[381405853,1756187251687,-1219.3,0.00042739,30]
[381405854,1756187251732,-164.22747183,0.00042739,30]
[381405855,1756187251777,-1216.02,0.00042739,30]
[381405856,1756187251824,-505.40154194,0.00042739,30]
[381405857,1756187251872,-480.0,0.00042739,30]
[381405858,1756187251917,-1392.95,0.00042739,30]
[381405859,1756187251964,-480.0,0.00042739,30]
[381405860,1756187252011,-480.0,0.00042739,30]
[381405861,1756187252060,-480.0,0.00042739,30]
[381405862,1756187252109,-480.0,0.00042739,30]
[381405863,1756187252156,-243.29370494,0.00042739,30]
[381405864,1756187252203,-1403.21,0.00042739,30]
[381405865,1756187252249,-480.0,0.00042739,30]
[381405866,1756187252296,-558.48,0.00042739,30]
[381405867,1756187252343,-480.0,0.00042739,30]
[381405868,1756187252389,-480.0,0.00042739,30]
[381405869,1756187252435,-480.0,0.00042739,30]
[381405870,1756187252482,-480.0,0.00042739,30]
[381405871,1756187252531,-480.0,0.00042739,30]
[381405872,1756187252577,-480.0,0.00042739,30]
[381405873,1756187252623,-480.0,0.00042739,30]
[381405874,1756187252669,-490.35,0.00042739,30]
[381405875,1756187252715,-516.7,0.00042739,30]
[381405876,1756187252761,-2930.53,0.00042739,30]
[381405877,1756187252809,-480.0,0.00042739,30]
[381405878,1756187252858,-480.0,0.00042739,30]
[381405879,1756187252907,-480.0,0.00042739,30]
[381405880,1756187252955,-480.0,0.00042739,30]
[381405881,1756187253004,-480.0,0.00042739,30]
[381405883,1756187253055,-1125.4,0.00042739,30]
[381405884,1756187253108,-684.32,0.00042739,30]
[381405885,1756187253160,-480.0,0.00042739,30]
[381405886,1756187253213,-480.0,0.00042739,30]
[381405887,1756187253265,-611.68,0.00042739,30]
[381405888,1756187253316,-480.0,0.00042739,30]
[381405889,1756187253364,-480.0,0.00042739,30]
[381405890,1756187253414,-480.0,0.00042739,30]
[381405891,1756187253464,-480.0,0.00042739,30]
[381405892,1756187253518,-480.0,0.00042739,30]
[381405893,1756187253587,-480.0,0.00042739,30]
[381405894,1756187253639,-1931.9,0.00042739,30]
[381405895,1756187253687,-480.0,0.00042739,30]
[381405896,1756187253734,-699.1,0.00042739,30]
[381405897,1756187253922,-480.0,0.00042739,30]
[381405898,1756187253972,-480.0,0.00042739,30]
[381405899,1756187254024,-480.0,0.00042739,30]
[381405900,1756187254076,-480.0,0.00042739,30]
[381405901,1756187254128,-480.0,0.00042739,30]
[381405902,1756187254180,-480.0,0.00042739,30]
[381405903,1756187254231,-480.0,0.00042739,30]
[381405904,1756187254280,-767.18,0.00042739,30]
[381405905,1756187254333,-1468.19,0.00042739,30]
[381405906,1756187254384,-1445.59,0.00042739,30]
[381405907,1756187254434,-480.0,0.00042739,30]
[381405908,1756187254482,-949.84,0.00042739,30]
[381405909,1756187254532,-1678.18,0.00042739,30]
[381405910,1756187254586,-480.0,0.00042739,30]
[381405911,1756187254641,-1045.59,0.00042739,30]
[381405912,1756187254695,-480.0,0.00042739,30]
[381405913,1756187254749,-744.23,0.00042739,30]
[381405914,1756187254803,-610.92,0.00042739,30]
[381405915,1756187254860,-480.0,0.00042739,30]
[381405916,1756187254917,-546.37,0.00042739,30]
[381405917,1756187254973,-1316.44,0.00042739,30]
[381405918,1756187255026,-933.97,0.00042739,30]
[381405919,1756187255078,-1582.19,0.00042739,30]
[381405920,1756187255131,-480.0,0.00042739,30]
[381405921,1756187255185,-480.0,0.00042739,30]
[381405922,1756187255239,-670.71,0.00042739,30]
[381405923,1756187255295,-629.39,0.00042739,30]
[381405924,1756187255350,-480.0,0.00042739,30]
[381405925,1756187255404,-687.04,0.00042739,30]
[381405926,1756187255459,-482.24,0.00042739,30]
[381405927,1756187255513,-480.0,0.00042739,30]
[381405928,1756187255572,-480.0,0.00042739,30]
[381405929,1756187255628,-480.0,0.00042739,30]
[381405930,1756187255686,-500.0,0.00042739,120]
[381405931,1756187255743,-558.97631868,0.00042739,30]
[381405932,1756187255796,-836.39,0.00042739,30]
[381405933,1756187255852,-1124.64,0.00042739,30]
[381405934,1756187255905,-887.1,0.00042739,30]
[381405935,1756187255958,-480.0,0.00042739,30]
[381405936,1756187256012,-920.96,0.00042739,30]
[381405937,1756187256065,-480.0,0.00042739,30]
[381405938,1756187256119,-480.0,0.00042739,30]
[381405939,1756187256174,-732.29,0.00042739,30]
[381405940,1756187256227,-480.0,0.00042739,30]
[381405941,1756187256279,-1972.6,0.00042739,30]
[381405942,1756187256329,-480.0,0.00042739,30]
[381405943,1756187256387,-510.0,0.00042739,30]
[381405944,1756187256441,-593.11,0.00042739,30]
[381405945,1756187256498,-633.75,0.00042739,30]
[381405946,1756187256553,-512.53,0.00042739,30]
[381405947,1756187256604,-480.0,0.00042739,30]
[381405948,1756187256656,-486.38,0.00042739,30]
[381405949,1756187256704,-480.0,0.00042739,30]
[381405950,1756187256752,-480.0,0.00042739,30]
[381405951,1756187256796,-480.0,0.00042739,30]
[381405952,1756187256844,-1320.69,0.00042739,30]
[381405953,1756187256891,-1355.42,0.00042739,30]
[381405954,1756187256936,-480.0,0.00042739,30]
[381405955,1756187256982,-704.66,0.00042739,30]
[381405956,1756187257032,-480.0,0.00042739,30]
[381405957,1756187257084,-480.0,0.00042739,30]
[381405958,1756187257137,-480.0,0.00042739,30]
[381405959,1756187257188,-632.02,0.00042739,30]
[381405960,1756187257239,-1308.79,0.00042739,30]
[381405961,1756187257289,-668.55,0.00042739,30]
[381405962,1756187257341,-862.79,0.00042739,30]
[381405963,1756187257392,-480.0,0.00042739,30]
[381405964,1756187257444,-480.0,0.00042739,30]
[381405965,1756187257494,-480.0,0.00042739,30]
[381405966,1756187257543,-480.0,0.00042739,30]
[381405967,1756187257595,-480.0,0.00042739,30]
[381405968,1756187257650,-480.0,0.00042739,30]
[381405969,1756187257699,-1599.88,0.00042739,30]
[381405970,1756187257747,-480.0,0.00042739,30]
[381405971,1756187257797,-985.59,0.00042739,30]
[381405972,1756187257850,-1409.81,0.00042739,30]
[381405973,1756187257903,-11624.77,0.00042739,30]
[381405974,1756187257953,-480.0,0.00042739,30]
[381405975,1756187258005,-530.9,0.00042739,30]
[381405976,1756187258061,-480.0,0.00042739,30]
[381405977,1756187258114,-974.53,0.00042739,30]
[381405978,1756187258167,-480.0,0.00042739,30]
[381405979,1756187258221,-480.0,0.00042739,30]
[381405980,1756187258274,-480.0,0.00042739,30]
[381405981,1756187258329,-480.0,0.00042739,30]
[381405982,1756187258382,-1666.44,0.00042739,30]
[381405983,1756187258435,-2931.11,0.00042739,30]
[381405984,1756187258487,-480.0,0.00042739,30]
[381405985,1756187258541,-710.24,0.00042739,30]
[381405986,1756187258595,-893.9,0.00042739,30]
[381405987,1756187258647,-1433.67,0.00042739,30]
[381405988,1756187258695,-1101.95,0.00042739,30]
[381405989,1756187258742,-627.72,0.00042739,30]
[381405990,1756187258790,-637.26,0.00042739,30]
[381405991,1756187258842,-855.77,0.00042739,30]
[381405992,1756187258891,-480.0,0.00042739,30]
[381405993,1756187258936,-676.72,0.00042739,30]
[381405994,1756187258985,-480.0,0.00042739,30]
[381405995,1756187259033,-1085.31,0.00042739,30]
[381405996,1756187259085,-1600.98,0.00042739,30]
[381405997,1756187259133,-480.0,0.00042739,30]
[381405998,1756187259180,-572.62,0.00042739,30]
[381405999,1756187259228,-1467.95,0.00042739,30]
[381406000,1756187259274,-1000.0,0.00042739,30]
[381406001,1756187259481,-558.14,0.00042739,30]
[381406002,1756187259527,-480.0,0.00042739,30]
[381406003,1756187259578,-520.58,0.00042739,30]
[381406004,1756187259625,-1831.23,0.00042739,30]
[381406005,1756187259673,-2842.25,0.00042739,30]
[381406006,1756187259717,-480.0,0.00042739,30]
[381406007,1756187259761,-1923.11,0.00042739,30]
[381406008,1756187259807,-658.26,0.00042739,30]
[381406009,1756187259857,-1753.36,0.00042739,30]
[381406010,1756187259906,-480.0,0.00042739,30]
[381406011,1756187259954,-862.46,0.00042739,30]
[381406012,1756187260006,-480.0,0.00042739,30]
[381406013,1756187260056,-480.0,0.00042739,30]